[Event "*** Titled Tuesday Blitz"]
[Site "Chess.com"]
[Date "2020.04.07"]
[Round "6"]
[White "Enriquack"]
[Black "IAgrest"]
[Result "1/2-1/2"]
[WhiteElo "2390"]
[BlackElo "2202"]
[TimeControl "180+1"]
[EndTime "14:09:07 PDT"]
[Termination "Game drawn by repetition"]

1. e4 {[%clk 0:03:00.3]} 1... e5 {[%clk 0:02:58.7]} 2. Nf3 {[%clk 0:03:00.2]}
2... Nc6 {[%clk 0:02:59]} 3. Bb5 {[%clk 0:03:00.3]} 3... a6 {[%clk 0:02:59]} 4.
Ba4 {[%clk 0:03:00.5]} 4... Nf6 {[%clk 0:02:59.2]} 5. O-O {[%clk 0:03:00.1]}
5... Bc5 {[%clk 0:02:59.8]} 6. c3 {[%clk 0:02:59.2]} 6... b5 {[%clk 0:02:59.7]}
7. Bc2 {[%clk 0:02:59.1]} 7... d5 {[%clk 0:02:59.4]} 8. exd5 {[%clk 0:02:09.4]}
8... Qxd5 {[%clk 0:02:58.4]} 9. d4 {[%clk 0:02:08.7]} 9... exd4 {[%clk 0:02:58]}
10. Re1+ {[%clk 0:02:06.1]} 10... Kf8 {[%clk 0:02:57.5]} 11. Bg5 {[%clk
0:01:56.5]} 11... Qd6 {[%clk 0:02:25.6]} 12. cxd4 {[%clk 0:01:35.1]} 12... Nxd4
{[%clk 0:02:20.7]} 13. Nxd4 {[%clk 0:01:34.7]} 13... Qxd4 {[%clk 0:01:48.8]} 14.
Qf3 {[%clk 0:00:55.1]} 14... Qd5 {[%clk 0:01:11.4]} 15. Qxd5 {[%clk 0:00:30.4]}
15... Nxd5 {[%clk 0:01:12.3]} 16. a4 {[%clk 0:00:24]} 16... Bb7 {[%clk
0:01:03.2]} 17. axb5 {[%clk 0:00:23.4]} 17... axb5 {[%clk 0:01:03.7]} 18. Rxa8+
{[%clk 0:00:23.9]} 18... Bxa8 {[%clk 0:01:04.6]} 19. Be4 {[%clk 0:00:24.2]}
19... f6 {[%clk 0:00:50.4]} 20. Bh4 {[%clk 0:00:20.4]} 20... Kf7 {[%clk
0:00:47.3]} 21. Bg3 {[%clk 0:00:19]} 21... Bb6 {[%clk 0:00:39.2]} 22. Rc1 {[%clk
0:00:16.7]} 22... c6 {[%clk 0:00:27.7]} 23. Nc3 {[%clk 0:00:16.1]} 23... Re8
{[%clk 0:00:22.7]} 24. Bf3 {[%clk 0:00:15.4]} 24... Bb7 {[%clk 0:00:19.6]} 25.
h3 {[%clk 0:00:13.8]} 25... Nb4 {[%clk 0:00:14.7]} 26. Nxb5 {[%clk 0:00:13]}
26... cxb5 {[%clk 0:00:13.2]} 27. Bxb7 {[%clk 0:00:12.6]} 27... Nd3 {[%clk
0:00:12.9]} 28. Rd1 {[%clk 0:00:09.5]} 28... Nxb2 {[%clk 0:00:12.7]} 29. Bd5+
{[%clk 0:00:09.7]} 29... Kg6 {[%clk 0:00:12.1]} 30. Rb1 {[%clk 0:00:10.2]} 30...
Nd3 {[%clk 0:00:11]} 31. Rxb5 {[%clk 0:00:10.3]} 31... Re1+ {[%clk 0:00:10.3]}
32. Kh2 {[%clk 0:00:10.7]} 32... Bxf2 {[%clk 0:00:09.8]} 33. Bxf2 {[%clk
0:00:07.7]} 33... Nxf2 {[%clk 0:00:10.7]} 34. Rb2 {[%clk 0:00:06.6]} 34... Nd3
{[%clk 0:00:10.2]} 35. Rd2 {[%clk 0:00:06.8]} 35... Ne5 {[%clk 0:00:08.7]} 36.
Bg8 {[%clk 0:00:06.7]} 36... h6 {[%clk 0:00:07.9]} 37. Rd8 {[%clk 0:00:06.7]}
37... Re2 {[%clk 0:00:07.3]} 38. Kg3 {[%clk 0:00:06.5]} 38... Rb2 {[%clk
0:00:06.7]} 39. Bd5 {[%clk 0:00:06.5]} 39... Re2 {[%clk 0:00:04.6]} 40. Ba8
{[%clk 0:00:05]} 40... h5 {[%clk 0:00:04.3]} 41. h4 {[%clk 0:00:04.7]} 41...
Re3+ {[%clk 0:00:03.4]} 42. Kh2 {[%clk 0:00:04.7]} 42... Ra3 {[%clk 0:00:03.5]}
43. Be4+ {[%clk 0:00:04.1]} 43... Kf7 {[%clk 0:00:03.4]} 44. Rd1 {[%clk
0:00:04.6]} 44... Ng4+ {[%clk 0:00:03]} 45. Kg1 {[%clk 0:00:04.5]} 45... Rc3
{[%clk 0:00:01.7]} 46. Bd5+ {[%clk 0:00:04.6]} 46... Kg6 {[%clk 0:00:01.1]} 47.
Bf3 {[%clk 0:00:05]} 47... Kf7 {[%clk 0:00:01.4]} 48. Bd5+ {[%clk 0:00:05.3]}
48... Kg6 {[%clk 0:00:01.7]} 49. Bf3 {[%clk 0:00:05.8]} 49... Kf7 {[%clk
0:00:02.1]} 50. Rd7+ {[%clk 0:00:06.3]} 50... Kg6 {[%clk 0:00:02.4]} 51. Be4+
{[%clk 0:00:06.7]} 51... Kh6 {[%clk 0:00:03]} 52. Rd1 {[%clk 0:00:05.1]} 52...
Ra3 {[%clk 0:00:02.9]} 53. Bf3 {[%clk 0:00:05.2]} 53... Rc3 {[%clk 0:00:02.6]}
54. Rd5 {[%clk 0:00:03.6]} 54... Rc1+ {[%clk 0:00:02.5]} 55. Rd1 {[%clk
0:00:04.2]} 55... Rc3 {[%clk 0:00:02.7]} 56. Kf1 {[%clk 0:00:04.1]} 56... Ra3
{[%clk 0:00:02.8]} 57. Rd8 {[%clk 0:00:03.4]} 57... Ra1+ {[%clk 0:00:01.9]} 58.
Ke2 {[%clk 0:00:03.8]} 58... Ra3 {[%clk 0:00:02.2]} 59. Rh8+ {[%clk 0:00:01.3]}
59... Kg6 {[%clk 0:00:02.5]} 60. Rb8 {[%clk 0:00:01.9]} 60... Kh6 {[%clk
0:00:02.7]} 61. Be4 {[%clk 0:00:01.8]} 61... g6 {[%clk 0:00:02.5]} 62. Bf3
{[%clk 0:00:02.3]} 62... f5 {[%clk 0:00:02.3]} 63. Rh8+ {[%clk 0:00:02.7]} 63...
Kg7 {[%clk 0:00:02.6]} 64. Rb8 {[%clk 0:00:03.3]} 64... Kf6 {[%clk 0:00:02.9]}
65. Rb7 {[%clk 0:00:04.2]} 65... Ke6 {[%clk 0:00:02.8]} 66. Rb6+ {[%clk
0:00:04.4]} 66... Kf7 {[%clk 0:00:02.9]} 67. Bd5+ {[%clk 0:00:04.7]} 67... Kg7
{[%clk 0:00:03.5]} 68. Bf3 {[%clk 0:00:05]} 68... Kf7 {[%clk 0:00:03.4]} 69.
Rb7+ {[%clk 0:00:05.4]} 69... Kf6 {[%clk 0:00:03.4]} 70. Rb6+ {[%clk 0:00:05.8]}
70... Kg7 {[%clk 0:00:03.6]} 71. Rb7+ {[%clk 0:00:05.8]} 71... Kf6 {[%clk
0:00:04]} 72. Rb6+ {[%clk 0:00:06.2]} 72... Kg7 {[%clk 0:00:04.5]} 73. Rb7+
{[%clk 0:00:06.3]} 73... Kf6 {[%clk 0:00:04.9]} 1/2-1/2

[Event "*** Titled Tuesday Blitz"]
[Site "Chess.com"]
[Date "2020.04.07"]
[Round "6"]
[White "Willychess95"]
[Black "sorrm8thatscheckm8"]
[Result "0-1"]
[WhiteElo "2600"]
[BlackElo "2452"]
[TimeControl "180+1"]
[EndTime "14:09:08 PDT"]
[Termination "sorrm8thatscheckm8 won on time"]

1. e4 {[%clk 0:03:00]} 1... c5 {[%clk 0:02:59]} 2. Nf3 {[%clk 0:02:59.9]} 2...
Nc6 {[%clk 0:02:59.4]} 3. d4 {[%clk 0:03:00]} 3... cxd4 {[%clk 0:03:00.3]} 4.
Nxd4 {[%clk 0:03:00.9]} 4... Nf6 {[%clk 0:02:55.6]} 5. Nc3 {[%clk 0:03:00.4]}
5... e5 {[%clk 0:02:54.3]} 6. Ndb5 {[%clk 0:02:56.8]} 6... d6 {[%clk 0:02:53.7]}
7. Nd5 {[%clk 0:02:56.7]} 7... Nxd5 {[%clk 0:02:52.9]} 8. exd5 {[%clk
0:02:57.6]} 8... Nb8 {[%clk 0:02:52.6]} 9. a4 {[%clk 0:02:57.8]} 9... a6 {[%clk
0:02:51.6]} 10. Na3 {[%clk 0:02:55.4]} 10... a5 {[%clk 0:02:52.1]} 11. Bb5+
{[%clk 0:02:52.7]} 11... Bd7 {[%clk 0:02:51.8]} 12. O-O {[%clk 0:02:51.9]} 12...
Be7 {[%clk 0:02:50.9]} 13. Be3 {[%clk 0:02:48.8]} 13... O-O {[%clk 0:02:50.3]}
14. Qd3 {[%clk 0:02:29.5]} 14... g6 {[%clk 0:02:39.8]} 15. Nc4 {[%clk 0:02:21]}
15... Bxb5 {[%clk 0:02:37.9]} 16. axb5 {[%clk 0:02:20.5]} 16... Nd7 {[%clk
0:02:38.8]} 17. b6 {[%clk 0:02:14.5]} 17... a4 {[%clk 0:02:15.9]} 18. b3 {[%clk
0:02:10.8]} 18... axb3 {[%clk 0:02:14.5]} 19. cxb3 {[%clk 0:02:10.5]} 19... f5
{[%clk 0:02:09.9]} 20. f3 {[%clk 0:02:09.2]} 20... Nf6 {[%clk 0:01:45]} 21. Ra7
{[%clk 0:01:49.1]} 21... Qd7 {[%clk 0:01:35.4]} 22. Rfa1 {[%clk 0:01:40.5]}
22... Rab8 {[%clk 0:01:34.4]} 23. Bf2 {[%clk 0:01:22.9]} 23... Rfc8 {[%clk
0:01:18.9]} 24. R7a5 {[%clk 0:01:14.1]} 24... Bf8 {[%clk 0:01:10.7]} 25. Bh4
{[%clk 0:01:04.5]} 25... Bg7 {[%clk 0:01:05.8]} 26. R1a2 {[%clk 0:01:00.6]}
26... Nh5 {[%clk 0:01:05.4]} 27. Bg5 {[%clk 0:00:52.9]} 27... h6 {[%clk
0:00:46.6]} 28. Bd2 {[%clk 0:00:48.4]} 28... Re8 {[%clk 0:00:40.2]} 29. Bb4
{[%clk 0:00:36.8]} 29... Bf8 {[%clk 0:00:33.4]} 30. Qf1 {[%clk 0:00:30.4]} 30...
Nf4 {[%clk 0:00:29.1]} 31. g3 {[%clk 0:00:28.6]} 31... Nh5 {[%clk 0:00:29]} 32.
Qc1 {[%clk 0:00:25.2]} 32... Rbc8 {[%clk 0:00:24.6]} 33. Qa3 {[%clk 0:00:24.2]}
33... Red8 {[%clk 0:00:20.6]} 34. Re2 {[%clk 0:00:21]} 34... Nf6 {[%clk
0:00:20.6]} 35. Qa1 {[%clk 0:00:18.2]} 35... Qf7 {[%clk 0:00:17.4]} 36. Qd1
{[%clk 0:00:14.7]} 36... f4 {[%clk 0:00:15.6]} 37. g4 {[%clk 0:00:14.2]} 37...
h5 {[%clk 0:00:15.9]} 38. h3 {[%clk 0:00:14.2]} 38... hxg4 {[%clk 0:00:16.2]}
39. hxg4 {[%clk 0:00:12.8]} 39... Nh7 {[%clk 0:00:16.7]} 40. Ra7 {[%clk
0:00:11.4]} 40... Ng5 {[%clk 0:00:16.4]} 41. Rf2 {[%clk 0:00:11.1]} 41... Nh3+
{[%clk 0:00:16.3]} 42. Kg2 {[%clk 0:00:11]} 42... Nxf2 {[%clk 0:00:17.2]} 43.
Kxf2 {[%clk 0:00:11.9]} 43... Be7 {[%clk 0:00:17.8]} 44. Nd2 {[%clk 0:00:08.1]}
44... Bh4+ {[%clk 0:00:16.7]} 45. Kg2 {[%clk 0:00:07.1]} 45... Bg3 {[%clk
0:00:16.9]} 46. Ne4 {[%clk 0:00:07.2]} 46... Qe7 {[%clk 0:00:14.4]} 47. g5
{[%clk 0:00:03.8]} 47... Kg7 {[%clk 0:00:13.9]} 48. Kf1 {[%clk 0:00:02.6]} 48...
Rh8 {[%clk 0:00:14.1]} 49. Ke2 {[%clk 0:00:03.1]} 49... Rh2+ {[%clk 0:00:14.1]}
50. Kd3 {[%clk 0:00:03.6]} 50... Qd7 {[%clk 0:00:12.6]} 51. Ra5 {[%clk
0:00:04.1]} 51... Qf5 {[%clk 0:00:12]} 52. Bxd6 {[%clk 0:00:04]} 52... Rf2
{[%clk 0:00:12.1]} 0-1

[Event "*** Titled Tuesday Blitz"]
[Site "Chess.com"]
[Date "2020.04.07"]
[Round "6"]
[White "Abdimalik_Abdisalimov"]
[Black "Atakishiyev04"]
[Result "1-0"]
[WhiteElo "2854"]
[BlackElo "2650"]
[TimeControl "180+1"]
[EndTime "14:09:09 PDT"]
[Termination "Abdimalik_Abdisalimov won on time"]

1. Na3 {[%clk 0:02:57.4]} 1... Nf6 {[%clk 0:02:59.4]} 2. Nb1 {[%clk 0:02:56.4]}
2... g6 {[%clk 0:02:59.5]} 3. g3 {[%clk 0:02:55.6]} 3... Bg7 {[%clk 0:02:59.6]}
4. Bg2 {[%clk 0:02:56.5]} 4... O-O {[%clk 0:03:00.1]} 5. d3 {[%clk 0:02:57.4]}
5... d5 {[%clk 0:03:00.4]} 6. Nf3 {[%clk 0:02:58.3]} 6... c5 {[%clk 0:03:00.6]}
7. O-O {[%clk 0:02:59.2]} 7... Nc6 {[%clk 0:03:00.3]} 8. Nbd2 {[%clk 0:03:00.1]}
8... h6 {[%clk 0:02:57.8]} 9. e4 {[%clk 0:03:00.3]} 9... e5 {[%clk 0:02:58.4]}
10. c3 {[%clk 0:03:00.5]} 10... Re8 {[%clk 0:02:56.2]} 11. a4 {[%clk 0:02:57.1]}
11... Qc7 {[%clk 0:02:50]} 12. Re1 {[%clk 0:02:53.2]} 12... d4 {[%clk
0:02:50.3]} 13. Nc4 {[%clk 0:02:53]} 13... b6 {[%clk 0:02:46.4]} 14. Bd2 {[%clk
0:02:49.6]} 14... a6 {[%clk 0:02:43.3]} 15. cxd4 {[%clk 0:02:47.4]} 15... cxd4
{[%clk 0:02:42.7]} 16. b4 {[%clk 0:02:47.5]} 16... Bb7 {[%clk 0:02:14]} 17. b5
{[%clk 0:02:47.1]} 17... axb5 {[%clk 0:02:14.6]} 18. axb5 {[%clk 0:02:48]} 18...
Na7 {[%clk 0:02:13.5]} 19. Qb3 {[%clk 0:02:42.8]} 19... Nd7 {[%clk 0:02:13.2]}
20. Rec1 {[%clk 0:02:37.2]} 20... Nc5 {[%clk 0:02:13.4]} 21. Qb1 {[%clk
0:02:36.9]} 21... Nc8 {[%clk 0:02:06.1]} 22. Rxa8 {[%clk 0:02:35.2]} 22... Bxa8
{[%clk 0:02:07]} 23. Bb4 {[%clk 0:02:23.3]} 23... Bf8 {[%clk 0:02:03.3]} 24. Bh3
{[%clk 0:02:05.8]} 24... Na7 {[%clk 0:01:44.5]} 25. Ba3 {[%clk 0:01:59.7]} 25...
f5 {[%clk 0:01:29.2]} 26. Nfd2 {[%clk 0:01:51.3]} 26... fxe4 {[%clk 0:01:27]}
27. Bxc5 {[%clk 0:01:47.7]} 27... Bxc5 {[%clk 0:01:23.3]} 28. Nxe4 {[%clk
0:01:46.9]} 28... Bxe4 {[%clk 0:01:23.3]} 29. dxe4 {[%clk 0:01:47.8]} 29... Rf8
{[%clk 0:01:22.4]} 30. Be6+ {[%clk 0:01:37.9]} 30... Kh8 {[%clk 0:01:19.6]} 31.
Kg2 {[%clk 0:01:35.6]} 31... Qe7 {[%clk 0:01:07.4]} 32. Bd5 {[%clk 0:01:30.3]}
32... Qf6 {[%clk 0:01:07.8]} 33. Rf1 {[%clk 0:01:22.3]} 33... Qf3+ {[%clk
0:01:03.9]} 34. Kg1 {[%clk 0:01:16.5]} 34... d3 {[%clk 0:01:04.1]} 35. Qe1
{[%clk 0:01:16.3]} 35... Bd4 {[%clk 0:00:59.8]} 36. Qd2 {[%clk 0:01:16.4]} 36...
Kh7 {[%clk 0:00:55.2]} 37. Nb2 {[%clk 0:01:08.9]} 37... h5 {[%clk 0:00:45.7]}
38. Nxd3 {[%clk 0:01:04.3]} 38... h4 {[%clk 0:00:46.1]} 39. Ne1 {[%clk
0:01:04.6]} 39... Qg4 {[%clk 0:00:45.3]} 40. Kg2 {[%clk 0:00:56.5]} 40... h3+
{[%clk 0:00:45.3]} 41. Kh1 {[%clk 0:00:56.8]} 41... Kg7 {[%clk 0:00:38.4]} 42.
f3 {[%clk 0:00:54.5]} 42... Qd7 {[%clk 0:00:32.3]} 43. f4 {[%clk 0:00:52.8]}
43... Qxb5 {[%clk 0:00:31.8]} 44. Nd3 {[%clk 0:00:48.4]} 44... exf4 {[%clk
0:00:30.4]} 45. gxf4 {[%clk 0:00:49.3]} 45... Nc6 {[%clk 0:00:29.8]} 46. Rc1
{[%clk 0:00:48.5]} 46... Ne7 {[%clk 0:00:27.2]} 47. Rc7 {[%clk 0:00:47.3]} 47...
Qb1+ {[%clk 0:00:25.5]} 48. Nc1 {[%clk 0:00:45.8]} 48... Bc5 {[%clk 0:00:20]}
49. f5 {[%clk 0:00:44.1]} 49... Qb4 {[%clk 0:00:13]} 50. Qxb4 {[%clk 0:00:35.4]}
50... Bxb4 {[%clk 0:00:13.9]} 51. Nd3 {[%clk 0:00:35.9]} 51... Bd6 {[%clk
0:00:12.6]} 52. Rd7 {[%clk 0:00:35.7]} 52... Ba3 {[%clk 0:00:12.2]} 53. Nf4
{[%clk 0:00:29.6]} 53... gxf5 {[%clk 0:00:10.9]} 54. Ne6+ {[%clk 0:00:29.5]}
54... Kf7 {[%clk 0:00:10.5]} 55. Nxf8+ {[%clk 0:00:28.4]} 55... Kxf8 {[%clk
0:00:11.4]} 56. exf5 {[%clk 0:00:23.9]} 56... Bc5 {[%clk 0:00:11.9]} 57. Be6
{[%clk 0:00:19.4]} 57... Kg7 {[%clk 0:00:10.5]} 58. f6+ {[%clk 0:00:19.9]} 58...
Kxf6 {[%clk 0:00:10.8]} 59. Bxh3 {[%clk 0:00:20.8]} 59... b5 {[%clk 0:00:10.8]}
60. Rb7 {[%clk 0:00:19.7]} 60... b4 {[%clk 0:00:10.7]} 61. Kg2 {[%clk
0:00:20.6]} 61... Ke5 {[%clk 0:00:08.9]} 62. Kf3 {[%clk 0:00:20.8]} 62... Kd4
{[%clk 0:00:08.9]} 63. Be6 {[%clk 0:00:20.7]} 63... Nc6 {[%clk 0:00:08.2]} 64.
h4 {[%clk 0:00:20]} 64... Ke5 {[%clk 0:00:08.4]} 65. Bg8 {[%clk 0:00:19]} 1-0

[Event "*** Titled Tuesday Blitz"]
[Site "Chess.com"]
[Date "2020.04.07"]
[Round "6"]
[White "SmirnovTimofey2000"]
[Black "abhidabhi"]
[Result "1/2-1/2"]
[WhiteElo "2543"]
[BlackElo "2740"]
[TimeControl "180+1"]
[EndTime "14:09:09 PDT"]
[Termination "Game drawn by repetition"]

1. e4 {[%clk 0:02:02.8]} 1... e5 {[%clk 0:02:58.9]} 2. Nf3 {[%clk 0:02:01.1]}
2... Nc6 {[%clk 0:02:58.9]} 3. Bc4 {[%clk 0:01:59.1]} 3... Nf6 {[%clk
0:02:58.5]} 4. d3 {[%clk 0:01:59.1]} 4... Be7 {[%clk 0:02:58.2]} 5. c3 {[%clk
0:01:58.4]} 5... d6 {[%clk 0:02:56.7]} 6. O-O {[%clk 0:01:57.5]} 6... O-O {[%clk
0:02:56.5]} 7. Bb3 {[%clk 0:01:57.7]} 7... Na5 {[%clk 0:02:54.9]} 8. Bc2 {[%clk
0:01:57]} 8... c5 {[%clk 0:02:55.3]} 9. Bg5 {[%clk 0:01:56.1]} 9... Nc6 {[%clk
0:02:54]} 10. Nbd2 {[%clk 0:01:54.7]} 10... h6 {[%clk 0:02:53.8]} 11. Bh4 {[%clk
0:01:51.7]} 11... Nh5 {[%clk 0:02:46.3]} 12. Bxe7 {[%clk 0:01:46.2]} 12... Qxe7
{[%clk 0:02:45.9]} 13. Kh1 {[%clk 0:01:46.6]} 13... Kh8 {[%clk 0:02:42.1]} 14.
Nc4 {[%clk 0:01:44.1]} 14... Nf4 {[%clk 0:02:40.4]} 15. Ne3 {[%clk 0:01:43.1]}
15... Be6 {[%clk 0:02:32.6]} 16. d4 {[%clk 0:01:39.5]} 16... cxd4 {[%clk
0:02:31.5]} 17. cxd4 {[%clk 0:01:30.5]} 17... exd4 {[%clk 0:02:31]} 18. Nxd4
{[%clk 0:01:25]} 18... Nxd4 {[%clk 0:02:30.9]} 19. Qxd4 {[%clk 0:01:23.9]} 19...
Rfd8 {[%clk 0:02:08.7]} 20. a3 {[%clk 0:01:19.7]} 20... Qg5 {[%clk 0:01:59.5]}
21. g3 {[%clk 0:01:16.7]} 21... Nh5 {[%clk 0:01:20.9]} 22. Rg1 {[%clk
0:00:51.8]} 22... Qc5 {[%clk 0:01:06.6]} 23. Rad1 {[%clk 0:00:40.7]} 23... Nf6
{[%clk 0:01:04.4]} 24. Rd2 {[%clk 0:00:34.1]} 24... Ng4 {[%clk 0:00:56.9]} 25.
Nxg4 {[%clk 0:00:29.9]} 25... Bxg4 {[%clk 0:00:55.3]} 26. Kg2 {[%clk 0:00:30.2]}
26... Qh5 {[%clk 0:00:54.5]} 27. Bd1 {[%clk 0:00:25.7]} 27... Qh3+ {[%clk
0:00:43.9]} 28. Kh1 {[%clk 0:00:21.6]} 28... a6 {[%clk 0:00:33.8]} 29. f4 {[%clk
0:00:16.6]} 29... Rac8 {[%clk 0:00:32.2]} 30. Bxg4 {[%clk 0:00:16.1]} 30... Qxg4
{[%clk 0:00:31.7]} 31. Qd3 {[%clk 0:00:16.6]} 31... Rc6 {[%clk 0:00:28.7]} 32.
Rgd1 {[%clk 0:00:16]} 32... Rdc8 {[%clk 0:00:27.5]} 33. Qe2 {[%clk 0:00:16.4]}
33... Qe6 {[%clk 0:00:23.1]} 34. Kg2 {[%clk 0:00:15]} 34... f5 {[%clk
0:00:20.2]} 35. exf5 {[%clk 0:00:14.4]} 35... Qxf5 {[%clk 0:00:20.4]} 36. Rxd6
{[%clk 0:00:13.6]} 36... Rxd6 {[%clk 0:00:15.4]} 37. Rxd6 {[%clk 0:00:14.5]}
37... Rc2 {[%clk 0:00:13.6]} 38. Rd2 {[%clk 0:00:14.7]} 38... Qd5+ {[%clk
0:00:13.7]} 39. Rxd5 {[%clk 0:00:14.3]} 39... Rxe2+ {[%clk 0:00:14.2]} 40. Kh3
{[%clk 0:00:13.8]} 40... Rxb2 {[%clk 0:00:15.1]} 41. a4 {[%clk 0:00:13]} 41...
Rb4 {[%clk 0:00:14.2]} 42. a5 {[%clk 0:00:12.6]} 42... Kh7 {[%clk 0:00:13.4]}
43. Rd6 {[%clk 0:00:11.5]} 43... Rb5 {[%clk 0:00:13.2]} 44. Rd7 {[%clk
0:00:11.7]} 44... Kg6 {[%clk 0:00:11.5]} 45. Kg4 {[%clk 0:00:11.1]} 45... Kf6
{[%clk 0:00:11]} 46. Kh4 {[%clk 0:00:08.6]} 46... g6 {[%clk 0:00:08.2]} 47. Rh7
{[%clk 0:00:07.2]} 47... Rxa5 {[%clk 0:00:05.7]} 48. Rxb7 {[%clk 0:00:06]} 48...
Rh5+ {[%clk 0:00:06.4]} 49. Kg4 {[%clk 0:00:06]} 49... Rxh2 {[%clk 0:00:07.3]}
50. Rb6+ {[%clk 0:00:06.4]} 50... Kg7 {[%clk 0:00:07.8]} 51. Rxa6 {[%clk
0:00:07.3]} 51... Rd2 {[%clk 0:00:07.4]} 52. Ra7+ {[%clk 0:00:06.7]} 52... Kf6
{[%clk 0:00:08]} 53. Ra6+ {[%clk 0:00:07.2]} 53... Kf7 {[%clk 0:00:08.5]} 54.
Ra7+ {[%clk 0:00:07.3]} 54... Ke6 {[%clk 0:00:08.3]} 55. Ra6+ {[%clk 0:00:06.9]}
55... Kf7 {[%clk 0:00:07.9]} 56. Ra7+ {[%clk 0:00:07]} 56... Kf8 {[%clk
0:00:06.5]} 57. Rh7 {[%clk 0:00:06]} 57... Rh2 {[%clk 0:00:05.5]} 58. Ra7 {[%clk
0:00:05.2]} 58... Kg8 {[%clk 0:00:04.8]} 59. Ra8+ {[%clk 0:00:05]} 59... Kg7
{[%clk 0:00:05.2]} 60. Ra7+ {[%clk 0:00:05.9]} 60... Kf6 {[%clk 0:00:05.6]} 61.
Ra6+ {[%clk 0:00:06.3]} 61... Kf7 {[%clk 0:00:06]} 62. Ra7+ {[%clk 0:00:06.9]}
62... Kf6 {[%clk 0:00:06.5]} 63. Ra6+ {[%clk 0:00:07.8]} 63... Kg7 {[%clk
0:00:06.8]} 64. Ra7+ {[%clk 0:00:08.7]} 64... Kg8 {[%clk 0:00:07]} 65. Ra8+
{[%clk 0:00:09]} 65... Kf7 {[%clk 0:00:07.3]} 66. Ra7+ {[%clk 0:00:09.1]} 66...
Kf8 {[%clk 0:00:07.9]} 67. Ra6 {[%clk 0:00:09.4]} 67... Kf7 {[%clk 0:00:08]} 68.
Ra7+ {[%clk 0:00:09.5]} 1/2-1/2

[Event "*** Titled Tuesday Blitz"]
[Site "Chess.com"]
[Date "2020.04.07"]
[Round "6"]
[White "Carnivoras"]
[Black "Yanidze"]
[Result "1-0"]
[WhiteElo "2625"]
[BlackElo "2458"]
[TimeControl "180+1"]
[EndTime "14:09:12 PDT"]
[Termination "Carnivoras won by checkmate"]

1. d4 {[%clk 0:03:00.9]} 1... g6 {[%clk 0:02:57.5]} 2. c4 {[%clk 0:02:59.5]}
2... Bg7 {[%clk 0:02:57.7]} 3. Nc3 {[%clk 0:03:00.1]} 3... c5 {[%clk 0:02:58.3]}
4. d5 {[%clk 0:03:00.6]} 4... Bxc3+ {[%clk 0:02:58.8]} 5. bxc3 {[%clk
0:03:01.5]} 5... f5 {[%clk 0:02:59.5]} 6. Nf3 {[%clk 0:03:00.4]} 6... Qa5 {[%clk
0:02:59.6]} 7. Qb3 {[%clk 0:02:59.4]} 7... d6 {[%clk 0:02:59.7]} 8. Bf4 {[%clk
0:02:56.8]} 8... Nf6 {[%clk 0:02:59.6]} 9. e3 {[%clk 0:02:56.8]} 9... Nbd7
{[%clk 0:02:59.7]} 10. Bd3 {[%clk 0:02:55.4]} 10... Nb6 {[%clk 0:03:00]} 11. O-O
{[%clk 0:02:52.8]} 11... Bd7 {[%clk 0:03:00.2]} 12. Nd2 {[%clk 0:02:52.3]} 12...
O-O-O {[%clk 0:02:59.4]} 13. Qc2 {[%clk 0:02:48.4]} 13... Qa4 {[%clk 0:02:28.6]}
14. Rfb1 {[%clk 0:02:37.5]} 14... h6 {[%clk 0:02:19]} 15. h3 {[%clk 0:02:31.4]}
15... Qxc2 {[%clk 0:02:08.8]} 16. Bxc2 {[%clk 0:02:30.4]} 16... Na4 {[%clk
0:02:08.9]} 17. Rb3 {[%clk 0:02:26.1]} 17... Kc7 {[%clk 0:02:03]} 18. Ra3 {[%clk
0:02:23]} 18... Nb6 {[%clk 0:02:02.6]} 19. Rxa7 {[%clk 0:02:20]} 19... Ra8
{[%clk 0:02:03.1]} 20. Rxa8 {[%clk 0:02:17]} 20... Rxa8 {[%clk 0:02:04]} 21.
Bxh6 {[%clk 0:02:16.1]} 21... Ra3 {[%clk 0:01:59]} 22. Bb3 {[%clk 0:02:14.8]}
22... Ba4 {[%clk 0:01:33.7]} 23. Re1 {[%clk 0:02:05.1]} 23... Ne4 {[%clk
0:01:25.7]} 24. Nxe4 {[%clk 0:01:55.8]} 24... fxe4 {[%clk 0:01:26.6]} 25. Rb1
{[%clk 0:01:55.4]} 25... Nd7 {[%clk 0:01:16.4]} 26. Bg5 {[%clk 0:01:52.2]} 26...
Bxb3 {[%clk 0:01:05.8]} 27. axb3 {[%clk 0:01:30.8]} 27... Kd8 {[%clk 0:01:05.8]}
28. Kh2 {[%clk 0:01:13.8]} 28... Ne5 {[%clk 0:01:05.6]} 29. b4 {[%clk
0:01:09.3]} 29... b6 {[%clk 0:00:31.9]} 30. bxc5 {[%clk 0:01:05.2]} 30... bxc5
{[%clk 0:00:32.8]} 31. Rb7 {[%clk 0:00:57.7]} 31... Nxc4 {[%clk 0:00:31.3]} 32.
Rxe7 {[%clk 0:00:54.1]} 32... Kc8 {[%clk 0:00:31.8]} 33. Rxe4 {[%clk 0:00:53.4]}
33... Nd2 {[%clk 0:00:31.9]} 34. Re6 {[%clk 0:00:52.3]} 34... Nf1+ {[%clk
0:00:29.1]} 35. Kg1 {[%clk 0:00:48.9]} 35... Ra1 {[%clk 0:00:30]} 36. g4 {[%clk
0:00:39.3]} 36... Nxe3+ {[%clk 0:00:27.4]} 37. Kh2 {[%clk 0:00:37.8]} 37... Nxd5
{[%clk 0:00:25.8]} 38. Rxd6 {[%clk 0:00:35.8]} 38... Nxc3 {[%clk 0:00:23.9]} 39.
Rxg6 {[%clk 0:00:34.9]} 39... Ne4 {[%clk 0:00:22]} 40. Be3 {[%clk 0:00:33.6]}
40... Ra2 {[%clk 0:00:20.1]} 41. Re6 {[%clk 0:00:29.4]} 41... Nxf2 {[%clk
0:00:19.3]} 42. Bxf2 {[%clk 0:00:29.6]} 42... Rxf2+ {[%clk 0:00:20.2]} 43. Kg3
{[%clk 0:00:30.2]} 43... Rc2 {[%clk 0:00:18.2]} 44. g5 {[%clk 0:00:29.3]} 44...
Kd7 {[%clk 0:00:18.3]} 45. Re1 {[%clk 0:00:29]} 45... c4 {[%clk 0:00:15.1]} 46.
h4 {[%clk 0:00:29.5]} 46... c3 {[%clk 0:00:15.2]} 47. g6 {[%clk 0:00:29.1]}
47... Ra2 {[%clk 0:00:13.4]} 48. h5 {[%clk 0:00:29.5]} 48... c2 {[%clk
0:00:12.2]} 49. g7 {[%clk 0:00:29.5]} 49... Ra8 {[%clk 0:00:10.3]} 50. h6 {[%clk
0:00:29.5]} 50... Rg8 {[%clk 0:00:10]} 51. Kg4 {[%clk 0:00:28.3]} 51... Rc8
{[%clk 0:00:05.8]} 52. Rc1 {[%clk 0:00:25.3]} 52... Ke7 {[%clk 0:00:05.8]} 53.
Rxc2 {[%clk 0:00:25.1]} 53... Rxc2 {[%clk 0:00:04.3]} 54. h7 {[%clk 0:00:22.1]}
54... Rg2+ {[%clk 0:00:03.2]} 55. Kf3 {[%clk 0:00:20.8]} 55... Rxg7 {[%clk
0:00:04.1]} 56. h8=Q {[%clk 0:00:20.5]} 56... Rf7+ {[%clk 0:00:05]} 57. Ke3
{[%clk 0:00:20.9]} 57... Ke6 {[%clk 0:00:04.9]} 58. Qh6+ {[%clk 0:00:19.8]}
58... Rf6 {[%clk 0:00:05.5]} 59. Qh3+ {[%clk 0:00:20]} 59... Ke5 {[%clk
0:00:06]} 60. Qh2+ {[%clk 0:00:19.8]} 60... Ke6 {[%clk 0:00:06.6]} 61. Ke4
{[%clk 0:00:20.4]} 61... Rg6 {[%clk 0:00:06.6]} 62. Qe5+ {[%clk 0:00:19.4]}
62... Kf7 {[%clk 0:00:06.6]} 63. Kf5 {[%clk 0:00:19.6]} 63... Rh6 {[%clk
0:00:06.1]} 64. Qc7+ {[%clk 0:00:19]} 64... Kg8 {[%clk 0:00:06.2]} 65. Kg5
{[%clk 0:00:19.3]} 65... Re6 {[%clk 0:00:04.8]} 66. Qc8+ {[%clk 0:00:17.6]}
66... Kf7 {[%clk 0:00:04.8]} 67. Qd7+ {[%clk 0:00:18]} 67... Re7 {[%clk
0:00:05.3]} 68. Qd5+ {[%clk 0:00:18.1]} 68... Ke8 {[%clk 0:00:05.8]} 69. Kf6
{[%clk 0:00:17.6]} 69... Rd7 {[%clk 0:00:06.4]} 70. Qg8# {[%clk 0:00:16.2]} 1-0